[Event "9th Bangabandhu Rapid Men 2021"]
[Site "Dhaka"]
[Date "2021.04.02"]
[Round "5.1"]
[White "Hossain, Enamul"]
[Black "Manon, Reja Neer"]
[Result "1-0"]
[ECO "C68"]
[WhiteElo "2404"]
[BlackElo "2112"]
[Annotator "ChessBase"]
[PlyCount "142"]
[EventDate "2021.04.02"]
[EventType "swiss"]
[EventCountry "BAN"]
[SourceTitle "playchess.com"]
[Source "ChessBase"]
[SourceQuality "1"]
[TimeControl "1500+10"]

1. e4 {[%emt 0:00:00]} e5 {[%emt 0:00:24]} 2. Nf3 {[%emt 0:00:03]} Nc6 {[%emt 0:00:02]} 3. Bb5 {[%emt 0:00:13]} a6 {[%emt 0:25:04]} 4. Bxc6 {[%emt 0:00:06]} dxc6 {[%emt 0:00:09]} 5. O-O {[%emt 0:00:03]} Bg4 {[%emt 0:00:44]} 6. h3 {[%emt 0:00:01]} Bxf3 {[%emt 0:00:03]} 7. Qxf3 {[%emt 0:00:02]} g6 {[%emt 0:24:47]} 8. d3 {[%emt 0:03:57]} Bg7 {[%emt 0:00:00]} 9. Nd2 {[%emt 0:22:05]} Nf6 {[%emt 0:00:00]} 10. Nc4 {[%emt 0:00:54]} Qe7 {[%emt 0:00:00]} 11. b3 {[%emt 0:00:58]} O-O {[%emt 0:00:00]} 12. Ba3 {[%emt 0:01:22]} c5 {[%emt 0:00:00]} 13. Bb2 {[%emt 0:00:01]} Nh5 {[%emt 0:00:00]} 14. a4 {[%emt 0:00:31]} a5 {[%emt 0:00:00]} 15. g3 {[%emt 0:01:14]} b6 {[%emt 0:00:00]} 16. Ne3 {[%emt 0:00:25]} f6 {[%emt 0:00:00]} 17. Rae1 {[%emt 0:01:57]} Qf7 {[%emt 0:00:00]} 18. Nc4 {[%emt 0:01:40]} Rae8 {[%emt 0:00:00]} 19. Bc1 {[%emt 0:00:47]} f5 {[%emt 0:00:00]} 20. g4 {[%emt 0:01:22]} fxg4 {[%emt 0:00:00]} 21. Qxf7+ {[%emt 0:00:02]} Rxf7 {[%emt 0:00:00]} 22. hxg4 {[%emt 0:00:02]} Nf4 {[%emt 0:00:00]} 23. Bxf4 {[%emt 0:02:12]} exf4 {[%emt 0:00:00]} 24. f3 {[%emt 0:10:55]} Bc3 {[%emt 0:00:00]} 25. Re2 {[%emt 0:00:03]} h6 {[%emt 0:00:00]} 26. Rh2 {[%emt 0:00:22]} Kg7 {[%emt 0:03:10]} 27. Kf2 {[%emt 0:00:09]} g5 {[%emt 0:00:00]} 28. Rfh1 {[%emt 0:00:07]} Rf6 {[%emt 0:00:00]} 29. Ke2 {[%emt 0:00:06]} Rfe6 {[%emt 0:00:00]} 30. Kd1 {[%emt 0:00:52]} Rb8 {[%emt 0:00:00]} 31. Na3 {[%emt 0:00:16]} c6 {[%emt 0:00:00]} 32. Nb1 {[%emt 0:00:02]} Be5 {[%emt 0:00:00]} 33. c3 {[%emt 0:00:38]} b5 {[%emt 0:01:02]} 34. Kc2 {[%emt 0:00:08]} b4 {[%emt 0:00:49]} 35. cxb4 {[%emt 0:00:43]} cxb4 {[%emt 0:00:26]} 36. Nd2 {[%emt 0:00:04]} Bd4 {[%emt 0:00:24]} 37. Nc4 {[%emt 0:00:07]} Ra8 {[%emt 0:00:03]} 38. Re2 {[%emt 0:01:04]} c5 {[%emt 0:00:25]} 39. e5 {[%emt 0:00:52]} Raa6 {[%emt 0:02:11]} 40. Re4 {[%emt 0:00:03]} Ra7 {[%emt 0:00:53]} 41. Rhe1 {[%emt 0:00:16]} Kg6 {[%emt 0:00:37]} 42. R1e2 {[%emt 0:00:16]} Ra8 {[%emt 0:00:34]} 43. Nd6 {[%emt 0:06:52]} Rd8 {[%emt 0:00:00]} 44. Nc4 {[%emt 0:00:00]} Ra8 {[%emt 0:00:00]} 45. Kb1 {[%emt 0:00:00]} Ra7 {[%emt 0:00:05]} 46. Kc2 {[%emt 0:00:00]} Ra8 {[%emt 0:00:01]} 47. Rh2 {[%emt 0:00:00]} Ra7 {[%emt 0:00:11]} 48. Rh1 {[%emt 0:00:00]} Ra8 {[%emt 0:00:11]} 49. Rhe1 {[%emt 0:00:00]} Ra7 {[%emt 0:00:12]} 50. Nd6 {[%emt 0:00:06]} Rd7 {[%emt 0:00:18]} 51. Nb5 {[%emt 0:00:05]} Be3 {[%emt 0:00:16]} 52. Nd6 {[%emt 0:00:40]} Bd4 {[%emt 0:00:02]} 53. Nc4 {[%emt 0:00:12]} Ra7 {[%emt 0:00:04]} 54. R1e2 {[%emt 0:00:04]} Ra8 {[%emt 0:00:40]} 55. Kd1 {[%emt 0:00:01]} Ra7 {[%emt 0:00:44]} 56. Rc2 {[%emt 0:00:09]} Bc3 {[%emt 0:00:23]} 57. Ke2 {[%emt 0:00:16]} Bd4 {[%emt 0:00:08]} 58. Kd1 {[%emt 0:00:15]} Ra8 {[%emt 0:00:13]} 59. Rce2 {[%emt 0:00:26]} Ra7 {[%emt 0:00:05]} 60. Kc2 {[%emt 0:00:04]} Ra8 {[%emt 0:00:14]} 61. Re1 {[%emt 0:00:42]} Ra7 {[%emt 0:00:05]} 62. R4e2 {[%emt 0:00:00]} Bc3 {[%emt 0:00:18]} 63. Rh1 {[%emt 0:00:00]} Rae7 {[%emt 0:00:11]} 64. Nxa5 {[%emt 0:00:00]} Rxe5 {[%emt 0:00:03]} 65. Re4 {[%emt 0:00:00]} Rxe4 {[%emt 0:00:10]} 66. dxe4 {[%emt 0:00:00]} Rd7 {[%emt 0:00:11]} 67. Nc4 {[%emt 0:00:00]} Ra7 {[%emt 0:00:17]} 68. Rd1 {[%emt 0:00:00]} Kg7 {[%emt 0:00:15]} 69. Rd6 {[%emt 0:00:00]} Bd4 {[%emt 0:00:02]} 70. Kd3 {[%emt 0:00:04]} h5 {[%emt 0:00:29]} 71. gxh5 {[%emt 0:00:05]} Rf7 {[%emt 0:00:30]} 1-0

[Event "9th Bangabandhu Rapid Men 2021"]
[Site "Dhaka"]
[Date "2021.04.02"]
[Round "5.2"]
[White "Mohammad Fahad, Rahman"]
[Black "Islam, Khandaker Aminul"]
[Result "1-0"]
[ECO "C78"]
[WhiteElo "2321"]
[BlackElo "2210"]
[Annotator "ChessBase"]
[PlyCount "46"]
[EventDate "2021.04.02"]
[EventType "swiss"]
[EventCountry "BAN"]
[SourceTitle "playchess.com"]
[Source "ChessBase"]
[SourceQuality "1"]
[TimeControl "1500+10"]

1. e4 {[%emt 0:00:00]} e5 {[%emt 0:00:00]} 2. Nf3 {[%emt 0:00:00]} Nc6 {[%emt 0:00:00]} 3. Bb5 {[%emt 0:00:00]} a6 {[%emt 0:00:11]} 4. Ba4 {[%emt 0:00:02]} Nf6 {[%emt 0:00:01]} 5. O-O {[%emt 0:00:02]} b5 {[%emt 0:00:07]} 6. Bb3 {[%emt 0:00:02]} Bc5 {[%emt 0:00:01]} 7. c3 {[%emt 0:00:07]} d6 {[%emt 0:00:01]} 8. d4 {[%emt 0:00:05]} Bb6 {[%emt 0:00:04]} 9. Be3 {[%emt 0:00:02]} Bg4 {[%emt 0:02:31]} 10. Nbd2 {[%emt 0:00:14]} exd4 {[%emt 0:00:20]} 11. cxd4 {[%emt 0:00:08]} Nxd4 {[%emt 0:00:07]} 12. Bxd4 {[%emt 0:00:09]} Bxd4 {[%emt 0:00:02]} 13. Bxf7+ {[%emt 0:00:03]} Kf8 {[%emt 0:01:08]} 14. Qb3 {[%emt 0:00:12]} Bb6 {[%emt 0:00:28]} 15. h3 {[%emt 0:03:54]} Bxf3 {[%emt 0:02:45]} 16. Nxf3 {[%emt 0:00:03]} Qe7 {[%emt 0:00:27]} 17. Bd5 {[%emt 0:00:14]} Nxd5 {[%emt 0:01:28]} 18. exd5 {[%emt 0:00:40]} Qf6 {[%emt 0:00:34]} 19. Rae1 {[%emt 0:01:12]} Re8 {[%emt 0:02:54]} 20. Qc2 {[%emt 0:03:51]} g6 {[%emt 0:11:41]} 21. Qc6 {[%emt 0:05:03]} Rxe1 {[%emt 0:00:00]} 22. Rxe1 {[%emt 0:00:05]} Kg7 {[%emt 0:00:20]} 23. Re6 {[%emt 0:04:15]} Qf4 {[%emt 0:00:30]} 1-0

[Event "9th Bangabandhu Rapid Men 2021"]
[Site "Dhaka"]
[Date "2021.04.02"]
[Round "5.3"]
[White "Mehdi Hasan Parag"]
[Black "Rahman, Ziaur"]
[Result "0-1"]
[ECO "B72"]
[WhiteElo "2192"]
[BlackElo "2432"]
[Annotator "ChessBase"]
[PlyCount "78"]
[EventDate "2021.04.02"]
[EventType "swiss"]
[EventCountry "BAN"]
[SourceTitle "playchess.com"]
[Source "ChessBase"]
[SourceQuality "1"]
[TimeControl "1500+10"]

1. e4 {[%emt 0:00:00]} c5 {[%emt 0:00:01]} 2. Nf3 {[%emt 0:00:00]} d6 {[%emt 0:00:04]} 3. d4 {[%emt 0:00:00]} cxd4 {[%emt 0:00:01]} 4. Nxd4 {[%emt 0:00:00]} Nf6 {[%emt 0:00:02]} 5. Nc3 {[%emt 0:00:02]} Nc6 {[%emt 0:00:04]} 6. Bg5 {[%emt 0:00:07]} g6 {[%emt 0:00:04]} 7. Be2 {[%emt 0:26:01]} Bg7 {[%emt 0:00:00]} 8. O-O {[%emt 0:00:05]} O-O {[%emt 0:00:00]} 9. Be3 {[%emt 0:00:10]} Bd7 {[%emt 0:00:30]} 10. f4 {[%emt 0:00:00]} Qc8 {[%emt 0:00:10]} 11. Kh1 {[%emt 0:00:00]} Bg4 {[%emt 0:00:00]} 12. Nxc6 bxc6 13. e5 {[%emt 0:00:30]} Bxe2 {[%emt 0:00:00]} 14. Qxe2 {[%emt 0:00:40]} Ng4 {[%emt 0:00:00]} 15. Bd4 {[%emt 0:00:00]} dxe5 {[%emt 0:00:00]} 16. fxe5 {[%emt 0:00:00]} Rd8 {[%emt 0:00:00]} 17. Rad1 {[%emt 0:00:00]} c5 {[%emt 0:00:10]} 18. Bg1 {[%emt 0:00:00]} Rxd1 {[%emt 0:00:00]} 19. Qxd1 {[%emt 0:00:00]} Nxe5 {[%emt 0:00:00]} 20. Qd5 {[%emt 0:00:00]} e6 {[%emt 0:00:00]} 21. Qd6 {[%emt 0:00:00]} Qb8 {[%emt 0:00:00]} 22. Qxc5 {[%emt 0:00:00]} Qb7 {[%emt 0:00:20]} 23. Bd4 {[%emt 0:01:10]} Rc8 {[%emt 0:00:00]} 24. Qxa7 {[%emt 0:00:00]} Qxa7 {[%emt 0:00:00]} 25. Bxa7 {[%emt 0:00:00]} Nc4 {[%emt 0:00:00]} 26. Ne4 {[%emt 0:00:00]} Bxb2 {[%emt 0:00:00]} 27. g4 {[%emt 0:00:00]} h6 {[%emt 0:00:10]} 28. h4 {[%emt 0:02:00]} f5 {[%emt 0:00:00]} 29. gxf5 {[%emt 0:00:00]} gxf5 {[%emt 0:00:00]} 30. Ng3 {[%emt 0:00:00]} Be5 {[%emt 0:00:00]} 31. Nh5 {[%emt 0:00:00]} Ra8 {[%emt 0:00:00]} 32. Bc5 {[%emt 0:00:00]} Rxa2 {[%emt 0:00:00]} 33. Rf2 {[%emt 0:00:00]} Kf7 {[%emt 0:00:00]} 34. Kg2 {[%emt 0:00:00]} Ra5 {[%emt 0:00:00]} 35. Bb4 {[%emt 0:00:00]} Ra8 {[%emt 0:00:00]} 36. Kf3 {[%emt 0:00:00]} Rg8 {[%emt 0:01:40]} 37. Bd2 {[%emt 0:00:00]} Rg4 {[%emt 0:00:00]} 38. Bc1 {[%emt 0:01:30]} Bd4 {[%emt 0:00:00]} 39. Re2 {[%emt 0:00:45]} Ne5+ {[%emt 0:00:00]} 0-1

[Event "9th Bangabandhu Rapid Men 2021"]
[Site "Dhaka"]
[Date "2021.04.02"]
[Round "5.4"]
[White "Ghosh, Chanchal Kumer"]
[Black "Mollah Abdullah, Al Rakib"]
[Result "1-0"]
[ECO "B06"]
[WhiteElo "2052"]
[BlackElo "2464"]
[Annotator "ChessBase"]
[PlyCount "69"]
[EventDate "2021.04.02"]
[EventType "swiss"]
[EventCountry "BAN"]
[SourceTitle "playchess.com"]
[Source "ChessBase"]
[SourceQuality "1"]
[TimeControl "1500+10"]

1. e4 {[%emt 0:00:00]} g6 {[%emt 0:00:00]} 2. Nf3 {[%emt 0:00:00]} Bg7 {[%emt 0:00:01]} 3. d4 {[%emt 0:00:03]} d6 {[%emt 0:00:09]} 4. Bc4 {[%emt 0:00:11]} e6 {[%emt 0:00:21]} 5. O-O {[%emt 0:00:18]} a6 {[%emt 0:00:03]} 6. Bb3 {[%emt 0:00:03]} Ne7 {[%emt 0:00:50]} 7. Re1 {[%emt 0:00:16]} Nd7 {[%emt 0:00:59]} 8. c3 {[%emt 0:01:52]} b6 {[%emt 0:02:07]} 9. Nbd2 {[%emt 0:01:07]} h6 {[%emt 0:00:21]} 10. Nf1 {[%emt 0:00:29]} Bb7 {[%emt 0:00:19]} 11. a4 {[%emt 0:00:44]} O-O {[%emt 0:00:24]} 12. Ng3 {[%emt 0:00:10]} Kh7 {[%emt 0:00:26]} 13. Bc2 {[%emt 0:00:25]} e5 {[%emt 0:02:49]} 14. h4 {[%emt 0:00:37]} c5 {[%emt 0:01:51]} 15. h5 {[%emt 0:02:41]} cxd4 {[%emt 0:01:16]} 16. cxd4 {[%emt 0:00:10]} Rc8 {[%emt 0:00:10]} 17. Be3 {[%emt 0:02:02]} Nc6 {[%emt 0:01:24]} 18. Rc1 {[%emt 0:01:27]} Qe7 {[%emt 0:01:14]} 19. Qd2 {[%emt 0:00:21]} exd4 {[%emt 0:00:23]} 20. Nxd4 {[%emt 0:00:12]} Nce5 {[%emt 0:00:44]} 21. Bb3 {[%emt 0:01:06]} Nc5 {[%emt 0:00:51]} 22. Rc3 {[%emt 0:02:47]} Nxe4 {[%emt 0:02:47]} 23. Nxe4 {[%emt 0:02:18]} Bxe4 {[%emt 0:00:02]} 24. Rxc8 {[%emt 0:01:00]} Rxc8 {[%emt 0:00:02]} 25. f3 {[%emt 0:00:21]} Bb7 {[%emt 0:01:07]} 26. hxg6+ {[%emt 0:00:15]} fxg6 {[%emt 0:00:12]} 27. Ne6 {[%emt 0:00:42]} Bxf3 {[%emt 0:05:04]} 28. Nxg7 {[%emt 0:01:03]} Qxg7 {[%emt 0:01:37]} 29. Qxd6 {[%emt 0:00:51]} Ba8 {[%emt 0:01:50]} 30. Bd4 {[%emt 0:01:07]} Qb7 {[%emt 0:00:02]} 31. Re2 {[%emt 0:00:16]} Rc1+ {[%emt 0:00:02]} 32. Kh2 {[%emt 0:00:13]} Nf3+ {[%emt 0:00:31]} 33. Kg3 {[%emt 0:00:35]} Rc7 {[%emt 0:00:10]} 34. Bg8+ {[%emt 0:00:49]} Kxg8 {[%emt 0:00:11]} 35. Re8+ {[%emt 0:00:03]} 1-0

[Event "9th Bangabandhu Rapid Men 2021"]
[Site "Dhaka"]
[Date "2021.04.02"]
[Round "5.5"]
[White "Rahman, Taibur"]
[Black "Jabed Al Azad"]
[Result "0-1"]
[ECO "D86"]
[WhiteElo "2189"]
[BlackElo "1983"]
[Annotator "ChessBase"]
[PlyCount "98"]
[EventDate "2021.04.02"]
[EventType "swiss"]
[EventCountry "BAN"]
[SourceTitle "playchess.com"]
[Source "ChessBase"]
[SourceQuality "1"]
[TimeControl "1500+10"]

1. d4 {[%emt 0:00:00]} Nf6 {[%emt 0:00:00]} 2. c4 {[%emt 0:00:00]} g6 {[%emt 0:00:00]} 3. Nc3 {[%emt 0:00:00]} d5 {[%emt 0:00:01]} 4. cxd5 {[%emt 0:00:01]} Nxd5 {[%emt 0:00:02]} 5. e4 {[%emt 0:00:02]} Nxc3 {[%emt 0:00:02]} 6. bxc3 {[%emt 0:00:01]} Bg7 {[%emt 0:00:02]} 7. Bc4 {[%emt 0:00:34]} O-O {[%emt 0:00:04]} 8. Ne2 {[%emt 0:00:02]} Nc6 {[%emt 0:26:09]} 9. h4 {[%emt 0:00:00]} h5 {[%emt 0:00:00]} 10. Bg5 {[%emt 0:00:00]} Na5 {[%emt 0:00:00]} 11. Bb5 {[%emt 0:00:00]} a6 {[%emt 0:00:00]} 12. Ba4 {[%emt 0:00:00]} f6 {[%emt 0:00:00]} 13. Be3 {[%emt 0:00:00]} e5 {[%emt 0:00:00]} 14. dxe5 {[%emt 0:00:00]} fxe5 {[%emt 0:00:00]} 15. Bc5 {[%emt 0:00:00]} Qxd1+ {[%emt 0:00:00]} 16. Rxd1 {[%emt 0:00:00]} Rf6 {[%emt 0:00:00]} 17. Rd8+ {[%emt 0:00:00]} Kh7 {[%emt 0:00:00]} 18. Be7 {[%emt 0:00:00]} Rf7 {[%emt 0:00:00]} 19. Bb4 {[%emt 0:00:00]} b5 {[%emt 0:00:00]} 20. Bc2 {[%emt 0:00:00]} Nb7 {[%emt 0:00:00]} 21. Rd1 {[%emt 0:00:00]} c5 {[%emt 0:00:00]} 22. Ba3 {[%emt 0:00:00]} Be6 {[%emt 0:00:00]} 23. Bb3 {[%emt 0:00:00]} c4 {[%emt 0:00:40]} 24. Bc2 {[%emt 0:00:00]} Bf8 {[%emt 0:00:50]} 25. Bxf8 {[%emt 0:01:00]} Rfxf8 {[%emt 0:00:00]} 26. O-O {[%emt 0:00:10]} Rad8 {[%emt 0:00:00]} 27. f3 {[%emt 0:00:00]} Nc5 {[%emt 0:00:00]} 28. Kf2 {[%emt 0:00:00]} a5 {[%emt 0:00:00]} 29. a3 {[%emt 0:00:00]} Kg7 {[%emt 0:00:00]} 30. Ke3 {[%emt 0:00:00]} Nb3 {[%emt 0:00:00]} 31. f4 {[%emt 0:00:00]} Bg4 {[%emt 0:00:00]} 32. fxe5 {[%emt 0:00:00]} Rxf1 {[%emt 0:00:00]} 33. Rxd8 {[%emt 0:00:00]} Re1 {[%emt 0:00:30]} 34. Bd1 {[%emt 0:00:00]} Nc5 {[%emt 0:00:00]} 35. Kf2 {[%emt 0:00:00]} Rh1 {[%emt 0:00:00]} 36. Bc2 {[%emt 0:00:00]} Ra1 {[%emt 0:00:20]} 37. Rd5 {[%emt 0:00:11]} Ra2 {[%emt 0:00:00]} 38. Bd1 {[%emt 0:01:09]} Bxe2 {[%emt 0:00:00]} 39. Bxe2 {[%emt 0:00:13]} Nxe4+ {[%emt 0:00:00]} 40. Ke3 {[%emt 0:00:10]} Rxe2+ {[%emt 0:00:00]} 41. Kf4 {[%emt 0:00:48]} Nxc3 {[%emt 0:00:00]} 42. Rd7+ {[%emt 0:00:01]} Kh6 {[%emt 0:00:00]} 43. Rd4 {[%emt 0:00:30]} Rxg2 {[%emt 0:00:00]} 44. e6 {[%emt 0:00:08]} Re2 {[%emt 0:00:00]} 45. Rd6 {[%emt 0:00:02]} b4 {[%emt 0:00:00]} 46. axb4 {[%emt 0:00:01]} axb4 {[%emt 0:00:00]} 47. Rb6 {[%emt 0:00:26]} Nd5+ {[%emt 0:02:10]} 48. Kf3 {[%emt 0:00:01]} Nxb6 {[%emt 0:00:00]} 49. Kxe2 {[%emt 0:00:02]} Kg7 {[%emt 0:00:00]} 0-1

[Event "9th Bangabandhu Rapid Men 2021"]
[Site "Dhaka"]
[Date "2021.04.02"]
[Round "5.6"]
[White "Mohammad Minhaz Uddin"]
[Black "Zia, Tahsin Tajwar"]
[Result "1/2-1/2"]
[ECO "D26"]
[WhiteElo "2281"]
[BlackElo "2170"]
[Annotator "ChessBase"]
[PlyCount "104"]
[EventDate "2021.04.02"]
[EventType "swiss"]
[EventCountry "BAN"]
[SourceTitle "playchess.com"]
[Source "ChessBase"]
[SourceQuality "1"]
[TimeControl "1500+10"]

1. e4 {[%emt 0:00:00]} c6 {[%emt 0:00:07]} 2. d4 {[%emt 0:25:20]} d5 {[%emt 0:00:01]} 3. exd5 {[%emt 0:00:10]} cxd5 {[%emt 0:00:02]} 4. c4 {[%emt 0:00:01]} Nf6 {[%emt 0:00:04]} 5. Nc3 {[%emt 0:00:03]} e6 {[%emt 0:00:07]} 6. Nf3 {[%emt 0:00:04]} Nc6 {[%emt 0:00:13]} 7. Bd3 {[%emt 0:00:49]} Bb4 {[%emt 0:00:44]} 8. O-O {[%emt 0:00:06]} O-O {[%emt 0:00:22]} 9. a3 {[%emt 0:00:10]} dxc4 {[%emt 0:00:37]} 10. Bxc4 {[%emt 0:00:04]} Be7 {[%emt 0:00:02]} 11. Ba2 {[%emt 0:02:03]} Nd5 {[%emt 0:01:19]} 12. Ne4 {[%emt 0:01:01]} b6 {[%emt 0:02:47]} 13. Re1 {[%emt 0:00:03]} Bb7 {[%emt 0:00:23]} 14. Qd3 {[%emt 0:22:46]} Bf6 {[%emt 0:20:32]} 15. Bd2 {[%emt 0:03:45]} Nce7 {[%emt 0:01:39]} 16. Rac1 {[%emt 0:00:44]} a5 {[%emt 0:00:47]} 17. Ne5 {[%emt 0:00:28]} Ng6 {[%emt 0:02:04]} 18. Nxf6+ {[%emt 0:05:40]} Nxf6 {[%emt 0:03:51]} 19. Bg5 {[%emt 0:00:59]} Bd5 {[%emt 0:03:15]} 20. Bb1 {[%emt 0:00:53]} Rc8 {[%emt 0:00:35]} 21. h4 {[%emt 0:09:55]} Rxc1 {[%emt 0:03:35]} 22. Rxc1 {[%emt 0:00:01]} Qd6 {[%emt 0:02:45]} 23. Qe2 {[%emt 0:00:33]} Nd7 {[%emt 0:00:23]} 24. Nxd7 {[%emt 0:00:42]} Qxd7 {[%emt 0:00:01]} 25. h5 {[%emt 0:00:07]} Ne7 {[%emt 0:00:11]} 26. h6 {[%emt 0:00:02]} Ng6 {[%emt 0:00:23]} 27. hxg7 {[%emt 0:00:17]} Rc8 {[%emt 0:00:01]} 28. Rd1 {[%emt 0:00:19]} Kxg7 {[%emt 0:00:21]} 29. Qh5 {[%emt 0:00:04]} f5 {[%emt 0:00:11]} 30. Re1 {[%emt 0:00:21]} Qf7 {[%emt 0:00:13]} 31. Qh2 {[%emt 0:00:14]} Qc7 {[%emt 0:00:06]} 32. Qh6+ {[%emt 0:00:09]} Kg8 {[%emt 0:00:03]} 33. Bf6 {[%emt 0:00:12]} Qf7 {[%emt 0:00:07]} 34. Bg5 {[%emt 0:00:05]} b5 {[%emt 0:00:19]} 35. Bd3 {[%emt 0:00:07]} b4 {[%emt 0:00:07]} 36. axb4 {[%emt 0:00:03]} axb4 {[%emt 0:00:01]} 37. Qh2 {[%emt 0:00:04]} Qc7 {[%emt 0:00:04]} 38. Qxc7 {[%emt 0:00:09]} Rxc7 {[%emt 0:00:01]} 39. Bd2 {[%emt 0:00:13]} b3 {[%emt 0:00:06]} 40. f3 {[%emt 0:00:10]} Ra7 {[%emt 0:00:59]} 41. Bb1 {[%emt 0:00:19]} Kf7 {[%emt 0:00:13]} 42. Kf2 {[%emt 0:00:01]} Ra4 {[%emt 0:00:24]} 43. Bc3 {[%emt 0:00:12]} Kg7 {[%emt 0:00:05]} 44. g3 {[%emt 0:00:09]} Ra7 {[%emt 0:00:07]} 45. Bd3 {[%emt 0:00:17]} Kf7 {[%emt 0:00:17]} 46. Rh1 {[%emt 0:00:07]} Kg7 {[%emt 0:00:01]} 47. Re1 {[%emt 0:00:22]} Kf7 {[%emt 0:00:01]} 48. Bb5 {[%emt 0:00:05]} Rb7 {[%emt 0:00:05]} 49. Bd3 {[%emt 0:00:09]} Ra7 {[%emt 0:00:00]} 50. Rc1 {[%emt 0:00:17]} Ra2 {[%emt 0:00:57]} 51. Bb1 {[%emt 0:00:04]} Ra4 {[%emt 0:00:03]} 52. Bd3 {[%emt 0:00:13]} Ra2 {[%emt 0:01:00]} 1/2-1/2

[Event "9th Bangabandhu Rapid Men 2021"]
[Site "Dhaka"]
[Date "2021.04.02"]
[Round "5.7"]
[White "Subrota, Biswas"]
[Black "Chowdhury, Sohel"]
[Result "1-0"]
[ECO "B11"]
[WhiteElo "2256"]
[BlackElo "2091"]
[Annotator "ChessBase"]
[PlyCount "62"]
[EventDate "2021.04.02"]
[EventType "swiss"]
[EventCountry "BAN"]
[SourceTitle "playchess.com"]
[Source "ChessBase"]
[SourceQuality "1"]
[TimeControl "1500+10"]

1. e4 {[%emt 0:00:11]} c6 {[%emt 0:00:00]} 2. Nf3 {[%emt 0:00:01]} d5 {[%emt 0:00:00]} 3. Nc3 {[%emt 0:00:02]} Bg4 {[%emt 0:00:04]} 4. h3 {[%emt 0:00:02]} Bxf3 {[%emt 0:00:16]} 5. gxf3 {[%emt 0:00:02]} e6 {[%emt 0:00:25]} 6. d4 {[%emt 0:00:03]} Nf6 {[%emt 0:00:15]} 7. Rg1 {[%emt 0:00:10]} g6 {[%emt 0:00:22]} 8. Bg5 {[%emt 0:01:44]} Be7 {[%emt 0:00:03]} 9. Qd2 {[%emt 0:00:43]} Nbd7 {[%emt 0:00:13]} 10. O-O-O {[%emt 0:00:44]} Nb6 {[%emt 0:01:35]} 11. exd5 {[%emt 0:01:31]} Nfxd5 {[%emt 0:00:24]} 12. Ne4 {[%emt 0:01:19]} Nf6 {[%emt 0:00:59]} 13. c4 {[%emt 0:02:33]} Nxe4 {[%emt 0:00:28]} 14. fxe4 {[%emt 0:00:02]} Bxg5 {[%emt 0:00:06]} 15. Rxg5 {[%emt 0:00:46]} Qe7 {[%emt 0:01:31]} 16. Qf4 {[%emt 0:06:10]} O-O-O {[%emt 0:01:24]} 17. Ra5 {[%emt 0:00:28]} a6 {[%emt 0:03:24]} 18. Ra3 {[%emt 0:04:51]} f6 {[%emt 0:01:12]} 19. c5 {[%emt 0:00:23]} e5 {[%emt 0:00:52]} 20. Qg4+ {[%emt 0:00:32]} Nd7 {[%emt 0:00:04]} 21. d5 {[%emt 0:01:27]} h5 {[%emt 0:02:23]} 22. Qe2 {[%emt 0:03:01]} Nxc5 {[%emt 0:00:21]} 23. b4 {[%emt 0:00:10]} Nd7 {[%emt 0:04:38]} 24. Rxa6 {[%emt 0:00:50]} Nb8 {[%emt 0:00:24]} 25. Ra3 {[%emt 0:00:30]} Qxb4 {[%emt 0:00:09]} 26. Rb3 {[%emt 0:00:08]} Qa5 {[%emt 0:00:48]} 27. Kb1 {[%emt 0:00:03]} cxd5 {[%emt 0:00:07]} 28. exd5 {[%emt 0:00:07]} Rxd5 {[%emt 0:00:14]} 29. Qc4+ {[%emt 0:00:20]} Rc5 {[%emt 0:00:02]} 30. Qe6+ {[%emt 0:00:02]} Kc7 {[%emt 0:01:51]} 31. Qe7+ {[%emt 0:00:03]} Kc8 {[%emt 0:00:00]} 1-0

[Event "9th Bangabandhu Rapid Men 2021"]
[Site "Dhaka"]
[Date "2021.04.02"]
[Round "5.8"]
[White "Tutul, Dhar"]
[Black "Reefat, Bin-Sattar"]
[Result "0-1"]
[ECO "A47"]
[WhiteElo "1826"]
[BlackElo "2401"]
[Annotator "ChessBase"]
[PlyCount "90"]
[EventDate "2021.04.02"]
[EventType "swiss"]
[EventCountry "BAN"]
[SourceTitle "playchess.com"]
[Source "ChessBase"]
[SourceQuality "1"]
[TimeControl "1500+10"]

1. d4 {[%emt 0:00:00]} e6 {[%emt 0:00:00]} 2. Bf4 {[%emt 0:00:00]} Nf6 {[%emt 0:00:10]} 3. Nf3 {[%emt 0:00:00]} c5 {[%emt 0:00:02]} 4. e3 {[%emt 0:00:04]} Be7 {[%emt 0:07:24]} 5. c3 {[%emt 0:00:06]} b6 {[%emt 0:00:19]} 6. Nbd2 {[%emt 0:00:11]} Bb7 {[%emt 0:00:03]} 7. Bd3 {[%emt 0:00:02]} d6 {[%emt 0:00:19]} 8. Qe2 {[%emt 0:00:40]} Nh5 {[%emt 0:01:34]} 9. Bg3 {[%emt 0:00:02]} Nd7 {[%emt 0:01:06]} 10. e4 {[%emt 0:00:19]} Qc7 {[%emt 0:01:02]} 11. e5 {[%emt 0:00:46]} Nxg3 {[%emt 0:00:18]} 12. hxg3 {[%emt 0:00:02]} dxe5 {[%emt 0:00:07]} 13. dxe5 {[%emt 0:00:05]} h6 {[%emt 0:00:04]} 14. O-O-O {[%emt 0:00:25]} O-O-O {[%emt 0:00:28]} 15. Ba6 {[%emt 0:00:29]} Nb8 {[%emt 0:03:03]} 16. Bxb7+ Kxb7 {[%emt 0:00:00]} 17. Nh4 {[%emt 0:02:36]} g5 {[%emt 0:02:04]} 18. Nhf3 {[%emt 0:00:05]} Nc6 {[%emt 0:00:03]} 19. Kb1 {[%emt 0:00:14]} g4 {[%emt 0:00:05]} 20. Nh2 {[%emt 0:00:10]} h5 {[%emt 0:00:30]} 21. Rhe1 {[%emt 0:00:02]} Rd5 {[%emt 0:00:31]} 22. f4 {[%emt 0:00:29]} gxf3 {[%emt 0:00:28]} 23. Nhxf3 {[%emt 0:22:03]} Rg8 {[%emt 0:09:10]} 24. Qf2 {[%emt 0:00:00]} b5 {[%emt 0:00:00]} 25. c4 {[%emt 0:00:00]} bxc4 {[%emt 0:00:00]} 26. Nxc4 {[%emt 0:00:00]} Rgd8 {[%emt 0:00:00]} 27. Qc2 {[%emt 0:00:00]} Nb4 {[%emt 0:00:00]} 28. Qb3 {[%emt 0:00:00]} Ka8 {[%emt 0:00:00]} 29. a3 {[%emt 0:00:00]} Nd3 {[%emt 0:00:00]} 30. Rf1 {[%emt 0:00:00]} f6 {[%emt 0:00:00]} 31. Nd6 {[%emt 0:00:00]} Bxd6 {[%emt 0:00:00]} 32. Rxd3 {[%emt 0:00:00]} c4 {[%emt 0:00:00]} 33. exd6 {[%emt 0:00:00]} Qh7 {[%emt 0:00:00]} 34. Qxc4 {[%emt 0:00:00]} Qxd3+ {[%emt 0:00:00]} 35. Qxd3 {[%emt 0:00:00]} Rxd3 {[%emt 0:00:00]} 36. Nh4 {[%emt 0:00:00]} f5 {[%emt 0:00:00]} 37. Nf3 {[%emt 0:00:00]} R8xd6 {[%emt 0:00:00]} 38. Kc2 {[%emt 0:00:00]} R3d5 {[%emt 0:00:00]} 39. Rh1 {[%emt 0:00:00]} e5 {[%emt 0:00:00]} 40. Rxh5 {[%emt 0:00:00]} e4 {[%emt 0:00:00]} 41. Nh4 {[%emt 0:00:00]} e3 {[%emt 0:00:00]} 42. Nxf5 {[%emt 0:00:00]} Rd8 {[%emt 0:00:00]} 43. Rh7 {[%emt 0:00:17]} Rxf5 {[%emt 0:00:00]} 44. Re7 {[%emt 0:00:01]} Rf2+ {[%emt 0:00:00]} 45. Kc3 {[%emt 0:00:05]} e2 {[%emt 0:03:40]} 0-1